lending/lending_fUSD_20240723
["ID","MTS","AMOUNT","RATE_DAILY","PERIOD"]
[332973503,1721711503646,-4526.95,0.00010958,2]
[332973504,1721711503655,-2683.38,0.00010958,2]
[332973505,1721711503664,-1684.11,0.00010958,2]
[332973506,1721711503674,-3140.38,0.00010958,2]
[332973507,1721711503683,-1659.77,0.00010958,2]
[332973508,1721711503693,-2658.7,0.00010958,2]
[332973509,1721711503702,-2191.53,0.00010958,2]
[332973510,1721711503712,-4526.95,0.00010958,2]
[332973511,1721711503722,-2683.38,0.00010958,2]
[332973512,1721711503731,-3140.38,0.00010958,2]
[332973513,1721711503740,-2607.01,0.00010958,2]
[332973514,1721711503749,-1659.77,0.00010958,2]
[332973515,1721711503758,-1684.11,0.00010958,2]
[332973516,1721711503767,-2658.7,0.00010958,2]
[332973517,1721711503777,-2191.53,0.00010958,2]
[332973518,1721711503786,-4526.95,0.00010958,2]
[332973519,1721711503795,-2683.50387423,0.00010958,2]
[332973520,1721711503805,-1659.77,0.00010958,2]
[332973521,1721711503815,-3140.38,0.00010958,2]
[332973522,1721711503825,-1684.11,0.00010958,2]
[332973523,1721711503838,-2607.01,0.00010958,2]
[332973524,1721711503847,-2658.7,0.00010958,2]
[332973525,1721711503858,-2191.53,0.00010958,2]
[332973526,1721711503867,-4526.95,0.00010958,2]
[332973527,1721711503876,-500.0,0.00010958,2]
[332973528,1721711503889,-3140.38,0.00010958,2]
[332973529,1721711503899,-1659.77,0.00010958,2]
[332973530,1721711503909,-2607.01,0.00010958,2]
[332973531,1721711503918,-1684.11,0.00010958,2]
[332973532,1721711503927,-2658.7,0.00010958,2]
[332973533,1721711503938,-2191.53,0.00010958,2]
[332973534,1721711503947,-4526.95,0.00010958,2]
[332973535,1721711503957,-500.0,0.00010958,2]
[332973536,1721711503966,-3140.38,0.00010958,2]
[332973537,1721711503976,-1659.82096078,0.00010958,2]
[332973538,1721711503986,-2607.01,0.00010958,2]
[332973539,1721711503995,-2658.7,0.00010958,2]
[332973540,1721711504005,-1684.11,0.00010958,2]
[332973541,1721711504014,-4526.95,0.00010958,2]
[332973542,1721711504024,-2191.53,0.00010958,2]
[332973543,1721711504033,-3140.38,0.00010958,2]
[332973544,1721711504043,-1684.11,0.00010958,2]
[332973545,1721711504052,-2658.7,0.00010958,2]
[332973546,1721711504062,-2191.53,0.00010958,2]
[332973547,1721711504071,-1140.15,0.00010958,2]
[332973548,1721711504080,-2607.01,0.00010958,2]
[332973549,1721711504089,-3140.38,0.00010958,2]
[332973550,1721711504098,-500.0,0.00010958,2]
[332973551,1721711504108,-4526.95,0.00010958,2]
[332973552,1721711504118,-2658.7,0.00010958,2]
[332973553,1721711504127,-1684.11,0.00010958,2]
[332973554,1721711504136,-1140.15,0.00010958,2]
[332973555,1721711504149,-2191.53,0.00010958,2]
[332973556,1721711504158,-3140.38,0.00010958,2]
[332973557,1721711504167,-500.0,0.00010958,2]
[332973558,1721711504177,-4526.95,0.00010958,2]
[332973559,1721711504187,-2658.7,0.00010958,2]
[332973560,1721711504196,-1140.15,0.00010958,2]
[332973561,1721711504205,-2607.01,0.00010958,2]
[332973562,1721711504214,-3140.38,0.00010958,2]
[332973563,1721711504224,-1684.11,0.00010958,2]
[332973564,1721711504233,-500.0,0.00010958,2]
[332973565,1721711504243,-2191.53,0.00010958,2]
[332973566,1721711504252,-4526.95,0.00010958,2]
[332973567,1721711504261,-2658.7,0.00010958,2]
[332973568,1721711504271,-1140.15,0.00010958,2]
[332973569,1721711504280,-2607.01,0.00010958,2]
[332973570,1721711504289,-3140.38,0.00010958,2]
[332973571,1721711504299,-1684.11,0.00010958,2]
[332973572,1721711504308,-500.0,0.00010958,2]
[332973573,1721711504318,-4526.95,0.00010958,2]
[332973574,1721711504327,-2658.7,0.00010958,2]
[332973575,1721711504337,-1140.15,0.00010958,2]
[332973576,1721711504346,-2607.01,0.00010958,2]
[332973577,1721711504356,-1684.11,0.00010958,2]
[332973578,1721711504365,-500.0,0.00010958,2]
[332973579,1721711504375,-4526.95,0.00010958,2]
[332973580,1721711504384,-2658.7,0.00010958,2]
[332973581,1721711504396,-513.28180523,0.00010958,2]
[332973582,1721711504406,-2607.01,0.00010958,2]
[332973583,1721711504415,-3140.38,0.00010958,2]
[332973584,1721711504425,-4526.95,0.00010958,2]
[332973585,1721711504434,-1140.15,0.00010958,2]
[332973586,1721711504443,-2658.76250731,0.00010958,2]
[332973587,1721711504453,-967.78,0.00010958,2]
[332973588,1721711504462,-4527.0489031,0.00010958,2]
[332973589,1721711504471,-2607.01,0.00010958,2]
[332973590,1721711504480,-3140.38,0.00010958,2]
[332973591,1721711504489,-1684.11,0.00010958,2]
[332973592,1721711504498,-1140.15,0.00010958,2]
[332973593,1721711504508,-2191.53,0.00010958,2]
[332973594,1721711504517,-3140.38,0.00010958,2]
[332973595,1721711504526,-2607.01,0.00010958,2]
[332973596,1721711504535,-1684.11,0.00010958,2]
[332973597,1721711504544,-2191.53,0.00010958,2]
[332973598,1721711504554,-3140.38,0.00010958,2]
[332973599,1721711504563,-2607.01,0.00010958,2]
[332973600,1721711504572,-967.78,0.00010958,2]
[332973601,1721711504581,-1684.11,0.00010958,2]
[332973602,1721711504690,-2191.53,0.00010958,2]
[332973603,1721711504699,-1140.15,0.00010958,2]
[332973604,1721711504709,-2607.01,0.00010958,2]
[332973605,1721711504718,-3140.38,0.00010958,2]
[332973606,1721711504727,-967.78,0.00010958,2]
[332973607,1721711504737,-1684.17622696,0.00010958,2]
[332973608,1721711504746,-2191.53,0.00010958,2]
[332973609,1721711504755,-3140.38,0.00010958,2]
[332973610,1721711504764,-1140.15,0.00010958,2]
[332973611,1721711504773,-967.78,0.00010958,2]
[332973612,1721711504783,-2191.53,0.00010958,2]
[332973613,1721711504792,-3140.38,0.00010958,2]
[332973614,1721711504801,-1140.15,0.00010958,2]
[332973615,1721711504814,-967.78,0.00010958,2]
[332973616,1721711504824,-2191.53,0.00010958,2]
[332973617,1721711504833,-2607.01,0.00010958,2]
[332973618,1721711504842,-3140.51,0.00010958,2]
[332973619,1721711504852,-967.78,0.00010958,2]
[332973620,1721711504862,-1140.15,0.00010958,2]
[332973621,1721711504871,-2607.01,0.00010958,2]
[332973622,1721711504882,-2191.69947008,0.00010958,2]
[332973623,1721711504893,-967.78,0.00010958,2]
[332973624,1721711504903,-1140.15,0.00010958,2]
[332973625,1721711504912,-967.78,0.00010958,2]
[332973626,1721711504921,-2950.25,0.00010958,2]
[332973627,1721711504931,-1140.15,0.00010958,2]
[332973628,1721711504940,-2607.01,0.00010958,2]
[332973629,1721711504950,-967.78,0.00010958,2]
[332973630,1721711504959,-1140.15,0.00010958,2]
[332973631,1721711504968,-2950.25,0.00010958,2]
[332973632,1721711504977,-2607.01,0.00010958,2]
[332973633,1721711504987,-967.78,0.00010958,2]
[332973634,1721711504996,-2950.25,0.00010958,2]
[332973635,1721711505005,-967.78,0.00010958,2]
[332973636,1721711505014,-1140.15,0.00010958,2]
[332973637,1721711505023,-2950.25,0.00010958,2]
[332973638,1721711505033,-2607.01,0.00010958,2]
[332973639,1721711505042,-504.53180341,0.00010958,2]
[332973640,1721711505051,-1140.15,0.00010958,2]
[332973641,1721711505059,-2950.25,0.00010958,2]
[332973642,1721711505068,-2607.01,0.00010958,2]
[332973643,1721711505077,-1140.15,0.00010958,2]
[332973644,1721711505087,-5932.39,0.00010958,2]
[332973645,1721711505096,-2950.25,0.00010958,2]
[332973646,1721711505104,-2607.01,0.00010958,2]
[332973647,1721711505113,-3504.07,0.00010958,2]
[332973648,1721711505122,-5932.39,0.00010958,2]
[332973649,1721711505131,-1140.15,0.00010958,2]
[332973650,1721711505141,-2950.25,0.00010958,2]
[332973651,1721711505150,-2607.01,0.00010958,2]
[332973652,1721711505159,-1140.15,0.00010958,2]
[332973653,1721711505168,-2950.25,0.00010958,2]
[332973654,1721711505177,-2607.14979613,0.00010958,2]
[332973655,1721711505186,-1140.15,0.00010958,2]
[332973656,1721711505194,-3504.07,0.00010958,2]
[332973657,1721711505203,-5932.39,0.00010958,2]
[332973658,1721711505212,-2950.25,0.00010958,2]
[332973659,1721711505221,-1140.15,0.00010958,2]
[332973660,1721711505230,-3504.07,0.00010958,2]
[332973661,1721711505239,-2950.25,0.00010958,2]
[332973662,1721711505248,-5932.39,0.00010958,2]
[332973663,1721711505256,-2857.38323335,0.00010958,2]
[332973664,1721711507493,-646.68676665,0.00010958,2]
[332973665,1721711507503,-2950.25,0.00010958,2]
[332973666,1721711507512,-5932.39,0.00010958,2]
[332973667,1721711507522,-1140.15,0.00010958,2]
[332973668,1721711507531,-967.78,0.00010958,2]
[332973669,1721711507541,-2950.25,0.00010958,2]
[332973670,1721711507551,-5932.39,0.00010958,2]
[332973671,1721711507561,-500.0,0.00010958,2]
[332973672,1721711507570,-3504.07,0.00010958,2]
[332973673,1721711507580,-967.78,0.00010958,2]
[332973674,1721711507590,-2950.25,0.00010958,2]
[332973675,1721711507599,-5932.39,0.00010958,2]
[332973676,1721711507609,-500.0,0.00010958,2]
[332973677,1721711507618,-1140.15,0.00010958,2]
[332973678,1721711507628,-2950.25,0.00010958,2]
[332973679,1721711507638,-967.78,0.00010958,2]
[332973680,1721711507649,-5932.39,0.00010958,2]
[332973681,1721711507659,-3504.07,0.00010958,2]
[332973682,1721711507668,-967.78,0.00010958,2]
[332973683,1721711507677,-1140.23172492,0.00010958,2]
[332973684,1721711507687,-2950.25,0.00010958,2]
[332973685,1721711507696,-5932.39,0.00010958,2]
[332973686,1721711507706,-500.0,0.00010958,2]
[332973687,1721711507715,-3504.07,0.00010958,2]
[332973688,1721711507725,-967.78,0.00010958,2]
[332973689,1721711507734,-2950.25,0.00010958,2]
[332973690,1721711507744,-5932.39,0.00010958,2]
[332973691,1721711507753,-500.0,0.00010958,2]
[332973692,1721711507763,-3504.07,0.00010958,2]
[332973693,1721711507772,-967.78,0.00010958,2]
[332973694,1721711507781,-2950.25,0.00010958,2]
[332973695,1721711507790,-500.0,0.00010958,2]
[332973696,1721711507804,-5932.39,0.00010958,2]
[332973697,1721711507813,-2950.25,0.00010958,2]
[332973698,1721711507822,-967.78,0.00010958,2]
[332973699,1721711507832,-3504.07,0.00010958,2]
[332973700,1721711507842,-5932.39,0.00010958,2]
[332973701,1721711507851,-967.78,0.00010958,2]
[332973702,1721711507861,-2950.25,0.00010958,2]
[332973703,1721711507870,-3504.07,0.00010958,2]
[332973704,1721711507881,-308.85687648,0.00010958,2]
[332973705,1721711507894,-5932.39,0.00010958,2]
[332973706,1721711507903,-2950.25,0.00010958,2]
[332973707,1721711507913,-3504.07,0.00010958,2]
[332973708,1721711507922,-5932.39,0.00010958,2]
[332973709,1721711507932,-2950.25,0.00010958,2]
[332973710,1721711507942,-3504.07,0.00010958,2]
[332973711,1721711507951,-5932.39,0.00010958,2]
[332973712,1721711507961,-2950.25,0.00010958,2]
[332973713,1721711507971,-3504.07,0.00010958,2]
[332973714,1721711507982,-5932.39,0.00010958,2]
[332973715,1721711507991,-3504.07,0.00010958,2]
[332973716,1721711508001,-2950.25,0.00010958,2]
[332973717,1721711508011,-703.49,0.00010958,2]
[332973718,1721711508022,-3504.07,0.00010958,2]
[332973719,1721711508033,-2950.43236786,0.00010958,2]
[332973720,1721711508043,-703.49,0.00010958,2]
[332973721,1721711508054,-5932.39,0.00010958,2]
[332973722,1721711508064,-3504.07,0.00010958,2]
[332973723,1721711508073,-703.49,0.00010958,2]
[332973724,1721711508083,-5932.39,0.00010958,2]
[332973725,1721711508094,-3504.07,0.00010958,2]
[332973726,1721711508104,-5932.39,0.00010958,2]
[332973727,1721711508114,-500.0,0.00010958,2]
[332973728,1721711508123,-3504.07,0.00010958,2]
[332973729,1721711508133,-703.49,0.00010958,2]
[332973730,1721711508144,-3504.07,0.00010958,2]
[332973731,1721711508153,-703.49,0.00010958,2]
[332973732,1721711508163,-5932.39,0.00010958,2]
[332973733,1721711508173,-3504.07,0.00010958,2]
[332973734,1721711508183,-703.49,0.00010958,2]
[332973735,1721711508192,-5932.39,0.00010958,2]
[332973736,1721711508202,-500.0,0.00010958,2]
[332973737,1721711508211,-3504.07,0.00010958,2]
[332973738,1721711508220,-703.49,0.00010958,2]
[332973739,1721711508229,-5932.39,0.00010958,2]
[332973740,1721711508238,-500.0,0.00010958,2]
[332973741,1721711508248,-3329.13,0.00010958,2]
[332973742,1721711508257,-2893.27,0.00010958,2]
[332973743,1721711508267,-500.0,0.00010958,2]
[332973744,1721711508276,-3504.07,0.00010958,2]
[332973745,1721711508286,-703.49,0.00010958,2]
[332973746,1721711508296,-5932.39,0.00010958,2]
[332973747,1721711508305,-500.0,0.00010958,2]
[332973748,1721711508315,-3329.13,0.00010958,2]
[332973749,1721711508325,-500.0,0.00010958,2]
[332973750,1721711508334,-703.49,0.00010958,2]
[332973751,1721711508344,-3504.07,0.00010958,2]
[332973752,1721711508353,-5932.39331072,0.00010958,2]
[332973753,1721711508363,-500.0,0.00010958,2]
[332973754,1721711508373,-2421.21096299,0.00010958,2]
[332973755,1721711508399,-907.91903701,0.00010958,2]
[332973756,1721711508412,-3504.16788441,0.00010958,2]
[332973757,1721711508422,-286.97776373,0.00010958,2]
[332973758,1721711508431,-3329.13,0.00010958,2]
[332973759,1721711508440,-703.49,0.00010958,2]
[332973760,1721711508450,-703.49,0.00010958,2]
[332973761,1721711508459,-3329.13,0.00010958,2]
[332973762,1721711508469,-703.49,0.00010958,2]
[332973763,1721711508479,-3329.13,0.00010958,2]
[332973764,1721711508488,-703.49,0.00010958,2]
[332973765,1721711508498,-3329.13,0.00010958,2]
[332973766,1721711508507,-3329.13,0.00010958,2]
[332973767,1721711508518,-2893.27,0.00010958,2]
[332973768,1721711508528,-500.0,0.00010958,2]
[332973769,1721711508537,-4387.59,0.00010958,2]
[332973770,1721711508547,-703.49,0.00010958,2]
[332973771,1721711508557,-3329.13,0.00010958,2]
[332973772,1721711508567,-500.0,0.00010958,2]
[332973773,1721711508576,-2893.27,0.00010958,2]
[332973774,1721711508586,-4387.59,0.00010958,2]
[332973775,1721711508597,-3329.13,0.00010958,2]
[332973776,1721711508607,-500.0,0.00010958,2]
[332973777,1721711508617,-2893.27,0.00010958,2]
[332973778,1721711508627,-4387.59,0.00010958,2]
[332973779,1721711508637,-3329.13,0.00010958,2]
[332973780,1721711508649,-500.0,0.00010958,2]
[332973781,1721711508659,-703.49,0.00010958,2]
[332973782,1721711508668,-3329.13,0.00010958,2]
[332973783,1721711508678,-703.49,0.00010958,2]
[332973784,1721711508688,-2893.27,0.00010958,2]
[332973785,1721711508698,-500.0,0.00010958,2]
[332973786,1721711508707,-500.0,0.00010958,2]
[332973787,1721711508717,-4387.59,0.00010958,2]
[332973788,1721711508726,-3329.13,0.00010958,2]
[332973789,1721711508736,-703.49,0.00010958,2]
[332973790,1721711508746,-500.0,0.00010958,2]
[332973791,1721711508756,-503.40126583,0.00010958,2]
[332973792,1721711508766,-4387.59,0.00010958,2]
[332973793,1721711508776,-703.49,0.00010958,2]
[332973794,1721711508786,-500.0,0.00010958,2]
[332973795,1721711508796,-4387.59,0.00010958,2]
[332973796,1721711508806,-2893.27,0.00010958,2]
[332973797,1721711508819,-3329.13,0.00010958,2]
[332973798,1721711508830,-703.49,0.00010958,2]
[332973799,1721711508840,-591.77,0.00010958,2]
[332973800,1721711508851,-500.0,0.00010958,2]
[332973801,1721711508862,-4387.59,0.00010958,2]
[332973802,1721711508872,-2893.27,0.00010958,2]
[332973803,1721711508882,-3329.13,0.00010958,2]
[332973804,1721711508897,-591.77,0.00010958,2]
[332973805,1721711508907,-2005.58,0.00010958,2]
[332973806,1721711508917,-2893.27,0.00010958,2]
[332973807,1721711508928,-4387.59,0.00010958,2]
[332973808,1721711508938,-2005.58,0.00010958,2]
[332973809,1721711508948,-796.47881115,0.00010958,2]
[332973810,1721711508971,-401.57746953,0.00010958,2]
[332973811,1721711509443,-1881.181056,0.00010958,2]
[332973812,1721711509853,-249.89266332,0.00010958,2]
[332973813,1721711509863,-591.77,0.00010958,2]
[332973814,1721711509873,-2005.58,0.00010958,2]
[332973815,1721711509883,-287.57431934,0.00010958,2]
[332973816,1721711509900,-212.42568066,0.00010958,2]
[332973817,1721711509910,-1187.70672011,0.00010958,2]
[332973818,1721711509935,-671.82,0.00010958,2]
[332973819,1721711509961,-357.53001,0.00010958,2]
[332973820,1721711509974,-1112.07326989,0.00010958,2]
[332973821,1721711509984,-2510.79478251,0.00010958,2]
[332973823,1721711580224,279.83,8.219e-05,2]
[332973824,1721712098575,265.83,8.219e-05,2]
[332973825,1721712124113,171.86661298,5e-05,2]
[332973826,1721712148388,1369.42188879,8.219e-05,2]
[332973827,1721712149087,1255.84357886,8.219e-05,2]
[332973828,1721712155550,155.0,8.219e-05,2]
[332973829,1721712160857,199.68667336,5e-05,2]
[332973830,1721712161625,257.1808211,5e-05,2]
[332973831,1721712162426,789.53774004,5e-05,2]
[332973832,1721712162933,558.89910194,5e-05,2]
[332973833,1721712163147,10577.23301965,8.219e-05,2]
[332973834,1721712163370,155.0,8.219e-05,2]
[332973835,1721712167071,155.0,5e-05,2]
[332973836,1721712168526,1671.83764145,5e-05,2]
[332973837,1721712169434,1616.04623101,5e-05,2]
[332973838,1721712171848,1103.73161545,5e-05,2]
[332973839,1721712181887,304.86780214,5e-05,2]
[332973840,1721712182215,155.0,5e-05,2]
[332973841,1721712184473,155.0,5e-05,2]
[332973842,1721712188555,160.25751524,5e-05,2]
[332973843,1721712193578,155.0,5e-05,2]
[332973844,1721712198507,1671.83764145,5e-05,2]
[332973845,1721712200924,411.34916256,6.061e-05,2]
[332973846,1721712201998,837.22905257,6.061e-05,2]
[332973847,1721712202770,797.30336427,5e-05,2]
[332973848,1721712202903,1369.42188879,6.061e-05,2]
[332973849,1721712212432,558.89910194,6.061e-05,2]
[332973850,1721712214581,155.0,6.061e-05,2]
[332973851,1721712222768,155.0,5e-05,2]
[332973852,1721712224530,200.0,8.996e-05,2]
[332973853,1721712225867,155.08635008,6.061e-05,2]
[332973854,1721712234393,158.83612492,6.061e-05,2]
[332973855,1721712239720,155.0,6.061e-05,2]
[332973856,1721712240010,871.0274112,6.061e-05,2]
[332973857,1721712245656,411.34916256,6.061e-05,2]
[332973858,1721712247982,194.8321962,6.061e-05,2]
[332973859,1721712248613,697.69087715,6.061e-05,2]
[332973860,1721712250444,291.18643211,6.061e-05,2]
[332973861,1721712252913,1369.42188879,6.061e-05,2]
[332973862,1721712259577,155.0,7.347e-05,2]
[332973863,1721712262606,170.37,8.219e-05,2]
[332973864,1721712266500,797.30336427,7.347e-05,2]
[332973865,1721712289727,155.0,7.347e-05,2]
[332973866,1721712297627,158.83612492,7.347e-05,2]
[332973867,1721712300915,1369.42188879,7.347e-05,2]
[332973868,1721712303076,411.34916256,7.347e-05,2]
[332973869,1721712311025,871.0274112,7.347e-05,2]
[332973870,1721712318404,539.96998222,8.905e-05,2]
[332973871,1721712318606,363.49694699,7.347e-05,2]
[332973872,1721712326441,797.30336427,8.905e-05,2]
[332973873,1721712326576,201.4407041,8.905e-05,2]
[332973874,1721712329439,291.18643211,8.905e-05,2]
[332973880,1721712345463,155.0,8.905e-05,2]
[332973881,1721712352407,175.18045052,8.861e-05,2]
[332973882,1721712356274,162.41760187,6.94e-05,2]
[332973883,1721712372440,158.83612492,8.905e-05,2]
[332973884,1721712376056,155.0,8.861e-05,2]
[332973906,1721712510791,797.30336427,8.861e-05,2]
[332973907,1721712511064,224.47982687,8.861e-05,2]
[332973909,1721712603809,150.0,8.861e-05,2]
[332973910,1721712604019,150.0,8.861e-05,2]
[332973911,1721712604458,150.0,8.861e-05,2]
[332973912,1721712604648,155.23135434,8.861e-05,2]
[332973913,1721712605794,797.30336427,8.861e-05,2]
[332973914,1721712620299,2234.26,8.219e-05,2]
[332973915,1721712620898,797.30336427,8.861e-05,2]
[332973941,1721712632807,-170.37,9.433e-05,2]
[332973942,1721712632816,-150.0,9.79e-05,2]
[332973943,1721712632825,-653.29182753,9.791e-05,2]
[332973944,1721712632855,-346.70817247,9.791e-05,2]
[332973945,1721712632864,-500.0,9.791e-05,2]
[332973946,1721712632877,-3165.72182753,9.791e-05,2]
[332973947,1721712632943,-1228.11482033,9.791e-05,2]
[332973948,1721712632954,-2109.53481332,9.791e-05,2]
[332973949,1721712633055,-6666.1,9.791e-05,2]
[332973950,1721712633067,-1035.77425926,9.791e-05,2]
[332973951,1721712633079,-563.52333975,9.791e-05,2]
[332973952,1721712637162,287.39,7.857e-05,2]
[332973953,1721712637391,287.39,8.643e-05,2]
[332973960,1721712638070,-287.39,9.428e-05,2]
[332973961,1721712638080,-723.53811315,9.791e-05,2]
[332973962,1721712638175,-1168.91354638,9.791e-05,2]
[332973963,1721712638186,-1659.99434364,9.791e-05,2]
[332973964,1721712638197,-2040.00565636,9.791e-05,2]
[332973965,1721712638231,-3538.77928028,9.791e-05,2]
[332973966,1721712638240,-496.89,9.791e-05,2]
[332973967,1721712638249,-250.0,9.801e-05,2]
[332973968,1721712638259,-659.69,9.937e-05,2]
[332973969,1721712638268,-250.0,9.944e-05,2]
[332973970,1721712638277,-1735.1439255,9.962e-05,2]
[332973971,1721712638286,-169.69,9.974e-05,2]
[332973972,1721712638295,-1282.70436286,0.0001,2]
[332973973,1721712638304,-155.57199099,0.0001,2]
[332973974,1721712638313,-155.13624464,0.0001,2]
[332973975,1721712638323,-520.01196764,0.0001,2]
[332973976,1721712638333,-287.39,0.00010214,2]
[332973977,1721712638342,-600.0,0.0001026,2]
[332973978,1721712638352,-700.0,0.0001026,2]
[332973979,1721712638362,-150.0,0.00010278,2]
[332973980,1721712638375,-150.0,0.00010278,2]
[332973981,1721712638383,-150.0,0.00010278,2]
[332973982,1721712638392,-150.0,0.000103,2]
[332973983,1721712638402,-150.0,0.000103,2]
[332973984,1721712638411,-2234.26,0.00010467,2]
[332973985,1721712638422,-499.99,0.00010473,2]
[332973986,1721712638432,-150.0,0.000105,2]
[332973987,1721712638442,-797.16,0.000105,2]
[332973988,1721712638454,-170.37,0.00010647,2]
[332973989,1721712638464,-1369.42188879,0.0001074,2]
[332973990,1721712638474,-411.34916256,0.0001074,2]
[332973991,1721712638484,-363.49694699,0.0001074,2]
[332973992,1721712638494,-291.18643211,0.0001074,2]
[332973994,1721712638504,-871.0274112,0.0001074,2]
[332973996,1721712638513,-231.71990065,0.0001074,2]
[332973998,1721712638523,-176.95169995,0.0001074,2]
[332974000,1721712638532,-158.83612492,0.0001074,2]
[332974002,1721712638542,-1268.28,0.00010748,2]
[332974004,1721712638552,-38358.0,0.00010748,2]
[332974006,1721712638562,-255.0,0.00010769,2]
[332974009,1721712638572,-150.23842,0.00010848,2]
[332974011,1721712638582,-177.83,0.00010848,2]
[332974013,1721712638592,-9320.9,0.00010848,2]
[332974015,1721712638603,-7524.3194,0.00010851,2]
[332974017,1721712638612,-320.7457,0.00010851,2]
[332974019,1721712638621,-2206.8,0.00010858,2]
[332974020,1721712638631,-428.59136598,0.00010858,2]
[332974022,1721712638642,-1000.0,0.00010858,2]
[332974024,1721712638651,-1522.9613,0.00010858,2]
[332974026,1721712638660,-940.5389,0.00010858,2]
[332974028,1721712638670,-500.0,0.0001087,2]
[332974030,1721712638679,-428.59136598,0.00010879,2]
[332974032,1721712638688,-428.59136598,0.000109,2]
[332974034,1721712638697,-27076.060136,0.00010951,2]
[332974036,1721712638707,-1705.2407294,0.00010951,2]
[332974037,1721712638716,-460.63550894,0.00010951,2]
[332974040,1721712638730,-1869.7443923,0.00010951,2]
[332974042,1721712638741,-210.64177086,0.00010951,2]
[332974044,1721712638750,-138.26820914,0.00010957,2]
[332974046,1721712638767,-1882.52257281,0.00010957,2]
[332974048,1721712638776,-597.0,0.00010958,2]
[332974050,1721712638786,-500.0,0.00010958,2]
[332974052,1721712638795,-200.0,0.00010958,2]
[332974054,1721712638804,-500.0,0.00010958,2]
[332974056,1721712638813,-500.0,0.00010958,2]
[332974058,1721712638822,-500.0,0.00010958,2]
[332974060,1721712638832,-500.0,0.00010958,2]
[332974062,1721712638841,-500.0,0.00010958,2]
[332974063,1721712638850,-500.0,0.00010958,2]
[332974065,1721712638859,-564.64096891,0.00010958,2]
[332974067,1721712638869,-500.0,0.00010958,2]
[332974069,1721712638883,-500.0,0.00010958,2]
[332974071,1721712638896,-500.0,0.00010958,2]
[332974073,1721712638905,-500.0,0.00010958,2]
[332974075,1721712638914,-500.0,0.00010958,2]
[332974077,1721712638923,-500.0,0.00010958,2]
[332974079,1721712638932,-500.0,0.00010958,2]
[332974081,1721712638942,-500.0,0.00010958,2]
[332974083,1721712638951,-500.0,0.00010958,2]
[332974084,1721712638960,-500.0,0.00010958,2]
[332974086,1721712638969,-500.0,0.00010958,2]
[332974088,1721712638978,-500.0,0.00010958,2]
[332974090,1721712638989,-500.0,0.00010958,2]
[332974092,1721712638998,-500.0,0.00010958,2]
[332974094,1721712639007,-635.04998115,0.00010958,2]
[332974096,1721712639016,-500.0,0.00010958,2]
[332974098,1721712639026,-500.0,0.00010958,2]
[332974100,1721712639035,-500.0,0.00010958,2]
[332974102,1721712639044,-500.0,0.00010958,2]
[332974104,1721712639054,-500.0,0.00010958,2]
[332974106,1721712639063,-500.0,0.00010958,2]
[332974108,1721712639073,-500.0,0.00010958,2]
[332974110,1721712639082,-500.0,0.00010958,2]
[332974112,1721712639091,-500.0,0.00010958,2]
[332974114,1721712639100,-500.0,0.00010958,2]
[332974115,1721712639109,-500.0,0.00010958,2]
[332974117,1721712639119,-500.0,0.00010958,2]
[332974119,1721712639134,-500.0,0.00010958,2]
[332974121,1721712639143,-500.0,0.00010958,2]
[332974123,1721712639152,-500.0,0.00010958,2]
[332974125,1721712639161,-500.0,0.00010958,2]
[332974127,1721712639171,-500.0,0.00010958,2]